[Event "Titled Tuesday Blitz November 22 Early 2022"]
[White "Harsh Suresh"]
[Black "Williams, Simon K"]
[WhiteFideId "45018464"]
[BlackFideId "404454"]
[WhiteElo "2227"]
[BlackElo "2468"]
[Result "1-0"]
[Round "02"]
[TimeControl "180+1"]
[Date "2022.11.23"]
[WhiteClock "0:00:15"]
[BlackClock "0:00:46"]

1. d4 {[%clk 0:02:59]}  e6 {[%clk 0:02:59]} 2. Nf3 {[%clk 0:02:58]}  f5 {[%clk 0:02:59]} 3. g3 {[%clk 0:02:51]}  Nf6 {[%clk 0:02:58]} 4. Bg2 {[%clk 0:02:51]}  Be7 {[%clk 0:02:58]} 5. O-O {[%clk 0:02:51]}  O-O {[%clk 0:02:57]} 6. c4 {[%clk 0:02:43]}  d6 {[%clk 0:02:56]} 7. Nc3 {[%clk 0:02:37]}  a5 {[%clk 0:02:55]} 8. b3 {[%clk 0:02:35]}  Ne4 {[%clk 0:02:55]} 9. Qc2 {[%clk 0:02:30]}  Nxc3 {[%clk 0:02:54]} 10. Qxc3 {[%clk 0:02:31]}  Bf6 {[%clk 0:02:54]} 11. Ba3 {[%clk 0:02:27]}  c6 {[%clk 0:02:53]} 12. Qd3 {[%clk 0:02:19]}  Na6 {[%clk 0:02:42]} 13. e4 {[%clk 0:01:55]}  Nb4 {[%clk 0:02:39]} 14. Bxb4 {[%clk 0:01:53]}  axb4 {[%clk 0:02:38]} 15. exf5 {[%clk 0:01:39]}  exf5 {[%clk 0:02:33]} 16. Qd2 {[%clk 0:01:35]}  Qa5 {[%clk 0:02:23]} 17. Rfe1 {[%clk 0:01:29]}  Bd7 {[%clk 0:02:21]} 18. Re2 {[%clk 0:01:20]}  Rfe8 {[%clk 0:02:15]} 19. Rae1 {[%clk 0:01:19]}  Rxe2 {[%clk 0:02:14]} 20. Rxe2 {[%clk 0:01:20]}  h6 {[%clk 0:02:08]} 21. h4 {[%clk 0:01:16]}  Be8 {[%clk 0:02:04]} 22. Qf4 {[%clk 0:01:03]}  Rd8 {[%clk 0:01:56]} 23. Bh3 {[%clk 0:00:48]}  Bg6 {[%clk 0:01:45]} 24. Re6 {[%clk 0:00:40]}  Qxa2 {[%clk 0:01:38]} 25. Rxf6 {[%clk 0:00:32]}  gxf6 {[%clk 0:01:37]} 26. Qxh6 {[%clk 0:00:32]}  Qb1+ {[%clk 0:01:33]} 27. Kg2 {[%clk 0:00:31]}  Bh7 {[%clk 0:01:01]} 28. Qxf6 {[%clk 0:00:25]}  Rf8 {[%clk 0:01:01]} 29. Qe6+ {[%clk 0:00:20]}  Kh8 {[%clk 0:00:59]} 30. Qxd6 {[%clk 0:00:18]}  Kg8 {[%clk 0:00:55]} 31. Qe6+ {[%clk 0:00:17]}  Kh8 {[%clk 0:00:54]} 32. Qh6 {[%clk 0:00:16]}  Kg8 {[%clk 0:00:49]} 33. Ng5 {[%clk 0:00:16]}  f4 {[%clk 0:00:47]} 34. Be6+ {[%clk 0:00:16]}  Kh8 {[%clk 0:00:46]} 35. Qxf8+ {[%clk 0:00:15]} 1-0


[Site "https://www.chess.com"]

[Event "Titled Tuesday Blitz November 22 Early 2022"]
[White "Hristodoulou, Panagiotis"]
[Black "Andreikin, Dmitry"]
[WhiteFideId "4214340"]
[BlackFideId "4158814"]
[WhiteElo "2272"]
[BlackElo "2736"]
[Result "0-1"]
[Round "02"]
[TimeControl "180+1"]
[Date "2022.11.22"]
[WhiteClock "0:00:01"]
[BlackClock "0:01:45"]

1. e4 {[%clk 0:02:58]}  c5 {[%clk 0:02:59]} 2. Nf3 {[%clk 0:02:44]}  d6 {[%clk 0:02:59]} 3. d4 {[%clk 0:02:45]}  cxd4 {[%clk 0:03:00]} 4. Nxd4 {[%clk 0:02:46]}  Nf6 {[%clk 0:03:00]} 5. Nc3 {[%clk 0:02:46]}  Bd7 {[%clk 0:03:00]} 6. Be2 {[%clk 0:02:39]}  e6 {[%clk 0:02:59]} 7. O-O {[%clk 0:02:37]}  Be7 {[%clk 0:02:59]} 8. Be3 {[%clk 0:02:28]}  O-O {[%clk 0:02:58]} 9. f4 {[%clk 0:02:27]}  Nc6 {[%clk 0:02:58]} 10. Qd2 {[%clk 0:02:27]}  Nxd4 {[%clk 0:02:56]} 11. Bxd4 {[%clk 0:02:27]}  Bc6 {[%clk 0:02:57]} 12. Bf3 {[%clk 0:02:26]}  e5 {[%clk 0:02:57]} 13. Be3 {[%clk 0:02:22]}  exf4 {[%clk 0:02:57]} 14. Bxf4 {[%clk 0:02:22]}  Qb6+ {[%clk 0:02:56]} 15. Kh1 {[%clk 0:02:22]}  Rad8 {[%clk 0:02:45]} 16. b3 {[%clk 0:02:18]}  Rfe8 {[%clk 0:02:45]} 17. Rae1 {[%clk 0:02:12]}  Nd7 {[%clk 0:02:45]} 18. Be2 {[%clk 0:01:59]}  Ne5 {[%clk 0:02:42]} 19. Bxe5 {[%clk 0:01:18]}  dxe5 {[%clk 0:02:42]} 20. Nd5 {[%clk 0:01:18]}  Bxd5 {[%clk 0:02:38]} 21. exd5 {[%clk 0:01:19]}  g6 {[%clk 0:02:33]} 22. Bc4 {[%clk 0:01:07]}  Qd6 {[%clk 0:02:32]} 23. Qe3 {[%clk 0:00:49]}  a6 {[%clk 0:02:24]} 24. Qxe5 {[%clk 0:00:45]}  Qxe5 {[%clk 0:02:24]} 25. Rxe5 {[%clk 0:00:44]}  Bd6 {[%clk 0:02:25]} 26. Rxe8+ {[%clk 0:00:41]}  Rxe8 {[%clk 0:02:26]} 27. a4 {[%clk 0:00:39]}  Kg7 {[%clk 0:02:26]} 28. g3 {[%clk 0:00:39]}  f5 {[%clk 0:02:26]} 29. Kg2 {[%clk 0:00:39]}  h5 {[%clk 0:02:26]} 30. Rf2 {[%clk 0:00:29]}  Kf6 {[%clk 0:02:26]} 31. Kf3 {[%clk 0:00:22]}  g5 {[%clk 0:02:24]} 32. Re2 {[%clk 0:00:19]}  g4+ {[%clk 0:02:25]} 33. Kf2 {[%clk 0:00:19]}  Be5 {[%clk 0:02:25]} 34. Kg2 {[%clk 0:00:17]}  Rh8 {[%clk 0:02:24]} 35. Bd3 {[%clk 0:00:14]}  h4 {[%clk 0:02:23]} 36. Rf2 {[%clk 0:00:11]}  h3+ {[%clk 0:02:14]} 37. Kh1 {[%clk 0:00:05]}  Rh5 {[%clk 0:02:13]} 38. c4 {[%clk 0:00:05]}  Bd6 {[%clk 0:02:12]} 39. Re2 {[%clk 0:00:03]}  Be5 {[%clk 0:02:03]} 40. Rf2 {[%clk 0:00:03]}  a5 {[%clk 0:02:00]} 41. c5 {[%clk 0:00:02]}  Bd4 {[%clk 0:02:00]} 42. Rc2 {[%clk 0:00:02]}  Rh8 {[%clk 0:01:56]} 43. c6 {[%clk 0:00:02]}  Re8 {[%clk 0:01:55]} 44. Rc1 {[%clk 0:00:02]}  bxc6 {[%clk 0:01:51]} 45. dxc6 {[%clk 0:00:02]}  Bb6 {[%clk 0:01:52]} 46. c7 {[%clk 0:00:03]}  Bxc7 {[%clk 0:01:51]} 47. Rf1 {[%clk 0:00:02]}  Re5 {[%clk 0:01:49]} 48. Bc4 {[%clk 0:00:02]}  Bd6 {[%clk 0:01:48]} 49. Kg1 {[%clk 0:00:02]}  Bc5+ {[%clk 0:01:48]} 50. Kh1 {[%clk 0:00:02]}  Re3 {[%clk 0:01:48]} 51. Rd1 {[%clk 0:00:02]}  Bb4 {[%clk 0:01:46]} 52. Kg1 {[%clk 0:00:01]}  Rf3 {[%clk 0:01:46]} 53. Rd3 {[%clk 0:00:01]}  Bc5+ {[%clk 0:01:45]} 0-1


[Site "https://www.chess.com"]

[Event "Titled Tuesday Blitz November 22 Early 2022"]
[White "Ivic, Velimir"]
[Black "Djokic, Mihailo"]
[WhiteFideId "950122"]
[BlackFideId "976440"]
[WhiteElo "2625"]
[BlackElo "2315"]
[Result "1-0"]
[Round "02"]
[TimeControl "180+1"]
[Date "2022.11.22"]
[WhiteClock "0:02:01"]
[BlackClock "0:02:06"]

1. d4 {[%clk 0:03:00]}  Nf6 {[%clk 0:02:57]} 2. c4 {[%clk 0:03:01]}  e6 {[%clk 0:02:55]} 3. Nf3 {[%clk 0:02:59]}  b6 {[%clk 0:02:53]} 4. g3 {[%clk 0:02:57]}  Bb7 {[%clk 0:02:52]} 5. Bg2 {[%clk 0:02:58]}  d5 {[%clk 0:02:52]} 6. O-O {[%clk 0:02:56]}  dxc4 {[%clk 0:02:50]} 7. Qa4+ {[%clk 0:02:56]}  Nbd7 {[%clk 0:02:49]} 8. Qxc4 {[%clk 0:02:55]}  Be7 {[%clk 0:02:48]} 9. Nc3 {[%clk 0:02:51]}  O-O {[%clk 0:02:47]} 10. Ne5 {[%clk 0:02:38]}  Bxg2 {[%clk 0:02:45]} 11. Kxg2 {[%clk 0:02:38]}  Nxe5 {[%clk 0:02:43]} 12. dxe5 {[%clk 0:02:39]}  Nd7 {[%clk 0:02:42]} 13. f4 {[%clk 0:02:29]}  Qc8 {[%clk 0:02:28]} 14. Qc6 {[%clk 0:02:27]}  Nc5 {[%clk 0:02:24]} 15. Rd1 {[%clk 0:02:16]}  Rd8 {[%clk 0:02:19]} 16. Rxd8+ {[%clk 0:02:02]}  Bxd8 {[%clk 0:02:06]} 17. Qe8# {[%clk 0:02:01]} 1-0


[Site "https://www.chess.com"]

[Event "Titled Tuesday Blitz November 22 Early 2022"]
[White "Jiganchine, Roman"]
[Black "Aaditya Dhingra"]
[WhiteFideId "2603667"]
[BlackFideId "25678191"]
[WhiteElo "2316"]
[BlackElo "2054"]
[Result "0-1"]
[Round "02"]
[TimeControl "180+1"]
[Date "2022.11.23"]
[WhiteClock "0:00:02"]
[BlackClock "0:01:12"]

1. e4 {[%clk 0:03:00]}  e5 {[%clk 0:02:59]} 2. Nf3 {[%clk 0:02:58]}  Nc6 {[%clk 0:02:59]} 3. Nc3 {[%clk 0:02:52]}  Nf6 {[%clk 0:02:58]} 4. Bb5 {[%clk 0:02:52]}  Nd4 {[%clk 0:02:56]} 5. O-O {[%clk 0:02:51]}  Nxf3+ {[%clk 0:02:55]} 6. Qxf3 {[%clk 0:02:49]}  c6 {[%clk 0:02:54]} 7. Bc4 {[%clk 0:02:46]}  d6 {[%clk 0:02:52]} 8. h3 {[%clk 0:02:45]}  Be7 {[%clk 0:02:51]} 9. d3 {[%clk 0:02:44]}  O-O {[%clk 0:02:50]} 10. Be3 {[%clk 0:02:40]}  Kh8 {[%clk 0:02:46]} 11. a4 {[%clk 0:02:38]}  Ng8 {[%clk 0:02:38]} 12. d4 {[%clk 0:02:26]}  f5 {[%clk 0:02:33]} 13. dxe5 {[%clk 0:02:01]}  fxe4 {[%clk 0:02:30]} 14. Qe2 {[%clk 0:01:36]}  d5 {[%clk 0:02:28]} 15. Rfd1 {[%clk 0:01:27]}  Qe8 {[%clk 0:02:27]} 16. Bxd5 {[%clk 0:01:17]}  cxd5 {[%clk 0:02:25]} 17. Nxd5 {[%clk 0:01:17]}  Bd8 {[%clk 0:02:25]} 18. Bc5 {[%clk 0:01:08]}  Rf5 {[%clk 0:02:18]} 19. Bd4 {[%clk 0:00:56]}  Rg5 {[%clk 0:02:13]} 20. Qxe4 {[%clk 0:00:48]}  Bxh3 {[%clk 0:02:09]} 21. Nf4 {[%clk 0:00:48]}  Bf5 {[%clk 0:02:08]} 22. Qe2 {[%clk 0:00:45]}  Bb6 {[%clk 0:02:05]} 23. Nd5 {[%clk 0:00:27]}  Bxd4 {[%clk 0:01:59]} 24. Rxd4 {[%clk 0:00:28]}  Rc8 {[%clk 0:01:57]} 25. c3 {[%clk 0:00:25]}  Be6 {[%clk 0:01:46]} 26. f4 {[%clk 0:00:22]}  Rf5 {[%clk 0:01:41]} 27. Ne3 {[%clk 0:00:21]}  Rf8 {[%clk 0:01:37]} 28. Rf1 {[%clk 0:00:18]}  Nh6 {[%clk 0:01:35]} 29. b4 {[%clk 0:00:15]}  Rxc3 {[%clk 0:01:32]} 30. Rd6 {[%clk 0:00:12]}  Rxe3 {[%clk 0:01:30]} 31. Qxe3 {[%clk 0:00:09]}  Nf5 {[%clk 0:01:30]} 32. Rxe6 {[%clk 0:00:07]}  Qxe6 {[%clk 0:01:27]} 33. Qxa7 {[%clk 0:00:07]}  Qc4 {[%clk 0:01:23]} 34. Qc5 {[%clk 0:00:05]}  Qxc5+ {[%clk 0:01:20]} 35. bxc5 {[%clk 0:00:06]}  Rc8 {[%clk 0:01:17]} 36. g4 {[%clk 0:00:06]}  Ne3 {[%clk 0:01:16]} 37. Re1 {[%clk 0:00:06]}  Nxg4 {[%clk 0:01:15]} 38. e6 {[%clk 0:00:06]}  Kg8 {[%clk 0:01:15]} 39. e7 {[%clk 0:00:06]}  Kf7 {[%clk 0:01:14]} 40. c6 {[%clk 0:00:04]}  bxc6 {[%clk 0:01:13]} 41. a5 {[%clk 0:00:03]}  Nf6 {[%clk 0:01:12]} 42. a6 {[%clk 0:00:02]}  Ne8 {[%clk 0:01:12]} 0-1


[Site "https://www.chess.com"]

[Event "Titled Tuesday Blitz November 22 Early 2022"]
[White "Jumabayev, Rinat"]
[Black "Stankovic, Ivan G"]
[WhiteFideId "13702661"]
[BlackFideId "902837"]
[WhiteElo "2561"]
[BlackElo "2226"]
[Result "1-0"]
[Round "02"]
[TimeControl "180+1"]
[Date "2022.11.23"]
[WhiteClock "0:01:29"]
[BlackClock "0:00:59"]

1. e4 {[%clk 0:02:54]}  c5 {[%clk 0:02:59]} 2. Nf3 {[%clk 0:02:54]}  Nc6 {[%clk 0:03:00]} 3. Bb5 {[%clk 0:02:55]}  g6 {[%clk 0:03:00]} 4. O-O {[%clk 0:02:55]}  Bg7 {[%clk 0:03:00]} 5. c3 {[%clk 0:02:55]}  Nh6 {[%clk 0:03:00]} 6. d4 {[%clk 0:02:55]}  cxd4 {[%clk 0:03:00]} 7. cxd4 {[%clk 0:02:56]}  a6 {[%clk 0:02:59]} 8. Ba4 {[%clk 0:02:54]}  O-O {[%clk 0:02:54]} 9. d5 {[%clk 0:02:53]}  Nb8 {[%clk 0:02:54]} 10. Nc3 {[%clk 0:02:49]}  d6 {[%clk 0:02:54]} 11. h3 {[%clk 0:02:48]}  Nd7 {[%clk 0:02:43]} 12. Re1 {[%clk 0:02:47]}  f5 {[%clk 0:02:41]} 13. Bg5 {[%clk 0:02:23]}  f4 {[%clk 0:02:03]} 14. Bxd7 {[%clk 0:02:09]}  Bxd7 {[%clk 0:02:01]} 15. e5 {[%clk 0:02:09]}  Nf7 {[%clk 0:01:48]} 16. exd6 {[%clk 0:02:05]}  Nxg5 {[%clk 0:01:43]} 17. dxe7 {[%clk 0:02:06]}  Nxf3+ {[%clk 0:01:43]} 18. Qxf3 {[%clk 0:02:06]}  Qb6 {[%clk 0:01:37]} 19. exf8=Q+ {[%clk 0:02:06]}  Rxf8 {[%clk 0:01:38]} 20. Re7 {[%clk 0:01:41]}  Qxb2 {[%clk 0:01:37]} 21. Rb1 {[%clk 0:01:41]}  Qxc3 {[%clk 0:01:20]} 22. Qxc3 {[%clk 0:01:41]}  Bxc3 {[%clk 0:01:21]} 23. Rxd7 {[%clk 0:01:41]}  b5 {[%clk 0:01:21]} 24. d6 {[%clk 0:01:40]}  f3 {[%clk 0:01:22]} 25. Rd1 {[%clk 0:01:36]}  a5 {[%clk 0:01:16]} 26. Rc7 {[%clk 0:01:34]}  Be5 {[%clk 0:01:09]} 27. Rc5 {[%clk 0:01:34]}  Bf6 {[%clk 0:01:04]} 28. Rxb5 {[%clk 0:01:32]}  fxg2 {[%clk 0:01:02]} 29. Rxa5 {[%clk 0:01:29]}  Bh4 {[%clk 0:01:02]} 30. Rd2 {[%clk 0:01:30]}  Bg5 {[%clk 0:00:59]} 31. Rxg5 {[%clk 0:01:29]} 1-0


[Site "https://www.chess.com"]

[Event "Titled Tuesday Blitz November 22 Early 2022"]
[White "Keymer, Vincent"]
[Black "Sadubayev, Airat"]
[WhiteFideId "12940690"]
[BlackFideId "13713264"]
[WhiteElo "2600"]
[BlackElo "2160"]
[Result "1-0"]
[Round "02"]
[TimeControl "180+1"]
[Date "2022.11.22"]
[WhiteClock "0:01:27"]
[BlackClock "0:00:12"]

1. a3 {[%clk 0:03:00]}  d5 {[%clk 0:02:56]} 2. Nf3 {[%clk 0:02:59]}  c5 {[%clk 0:02:54]} 3. b4 {[%clk 0:02:54]}  cxb4 {[%clk 0:02:40]} 4. axb4 {[%clk 0:02:54]}  Nf6 {[%clk 0:02:33]} 5. e3 {[%clk 0:02:53]}  e6 {[%clk 0:02:27]} 6. b5 {[%clk 0:02:50]}  Nbd7 {[%clk 0:02:18]} 7. Bb2 {[%clk 0:02:49]}  Be7 {[%clk 0:02:14]} 8. Be2 {[%clk 0:02:49]}  O-O {[%clk 0:02:14]} 9. O-O {[%clk 0:02:48]}  Nb6 {[%clk 0:01:57]} 10. Ne5 {[%clk 0:02:43]}  Nfd7 {[%clk 0:01:43]} 11. f4 {[%clk 0:02:30]}  Bf6 {[%clk 0:01:30]} 12. d4 {[%clk 0:02:13]}  Qc7 {[%clk 0:00:59]} 13. Nd2 {[%clk 0:02:10]}  a6 {[%clk 0:00:42]} 14. bxa6 {[%clk 0:02:02]}  bxa6 {[%clk 0:00:43]} 15. Ba3 {[%clk 0:01:55]}  Re8 {[%clk 0:00:38]} 16. Bd3 {[%clk 0:01:54]}  Bb7 {[%clk 0:00:20]} 17. Nxf7 {[%clk 0:01:39]}  Kxf7 {[%clk 0:00:18]} 18. Qh5+ {[%clk 0:01:38]}  g6 {[%clk 0:00:16]} 19. Qxh7+ {[%clk 0:01:38]}  Bg7 {[%clk 0:00:16]} 20. Qxg6+ {[%clk 0:01:33]}  Kg8 {[%clk 0:00:15]} 21. Qh7+ {[%clk 0:01:34]}  Kf7 {[%clk 0:00:15]} 22. Qh5+ {[%clk 0:01:26]}  Kg8 {[%clk 0:00:13]} 23. Bh7+ {[%clk 0:01:26]}  Kh8 {[%clk 0:00:13]} 24. Bg6+ {[%clk 0:01:27]}  Kg8 {[%clk 0:00:12]} 25. Qh7# {[%clk 0:01:27]} 1-0


[Site "https://www.chess.com"]

[Event "Titled Tuesday Blitz November 22 Early 2022"]
[White "Khandelwal, Ankush"]
[Black "Gardezi, Arsal"]
[WhiteFideId "413470"]
[BlackFideId "30949521"]
[WhiteElo "2271"]
[BlackElo "1906"]
[Result "1-0"]
[Round "02"]
[TimeControl "180+1"]
[Date "2022.11.23"]
[WhiteClock "0:00:35"]
[BlackClock "0:00:17"]

1. e4 {[%clk 0:03:00]}  e5 {[%clk 0:02:54]} 2. Nf3 {[%clk 0:03:00]}  Nc6 {[%clk 0:02:54]} 3. d4 {[%clk 0:03:01]}  exd4 {[%clk 0:02:54]} 4. Nxd4 {[%clk 0:03:02]}  Bc5 {[%clk 0:02:54]} 5. Nb3 {[%clk 0:03:02]}  Bb6 {[%clk 0:02:54]} 6. Nc3 {[%clk 0:03:00]}  Nf6 {[%clk 0:02:51]} 7. Qe2 {[%clk 0:03:00]}  d6 {[%clk 0:02:47]} 8. Be3 {[%clk 0:03:00]}  Qe7 {[%clk 0:02:39]} 9. O-O-O {[%clk 0:02:54]}  Be6 {[%clk 0:02:38]} 10. Nd5 {[%clk 0:02:26]}  Bxd5 {[%clk 0:02:24]} 11. exd5 {[%clk 0:02:27]}  Ne5 {[%clk 0:02:23]} 12. Qb5+ {[%clk 0:01:50]}  Qd7 {[%clk 0:02:17]} 13. Bxb6 {[%clk 0:01:48]}  axb6 {[%clk 0:02:16]} 14. f4 {[%clk 0:01:48]}  Qxb5 {[%clk 0:01:48]} 15. Bxb5+ {[%clk 0:01:49]}  Ned7 {[%clk 0:01:48]} 16. Rhe1+ {[%clk 0:01:48]}  Kd8 {[%clk 0:01:48]} 17. Kb1 {[%clk 0:01:48]}  Re8 {[%clk 0:01:38]} 18. Rxe8+ {[%clk 0:01:44]}  Nxe8 {[%clk 0:01:38]} 19. Nd4 {[%clk 0:01:44]}  g6 {[%clk 0:01:33]} 20. Nf3 {[%clk 0:01:42]}  Nef6 {[%clk 0:01:33]} 21. Ng5 {[%clk 0:01:42]}  Ra5 {[%clk 0:01:28]} 22. a4 {[%clk 0:01:27]}  Ke7 {[%clk 0:01:18]} 23. Re1+ {[%clk 0:01:27]}  Kf8 {[%clk 0:01:18]} 24. Bxd7 {[%clk 0:01:16]}  Nxd7 {[%clk 0:01:18]} 25. Nxh7+ {[%clk 0:01:16]}  Kg7 {[%clk 0:01:18]} 26. Re7 {[%clk 0:01:04]}  Rxa4 {[%clk 0:00:41]} 27. Ng5 {[%clk 0:00:55]}  Nc5 {[%clk 0:00:34]} 28. Rxf7+ {[%clk 0:00:54]}  Kg8 {[%clk 0:00:34]} 29. g3 {[%clk 0:00:45]}  Rd4 {[%clk 0:00:29]} 30. Rxc7 {[%clk 0:00:40]}  Rxd5 {[%clk 0:00:28]} 31. b4 {[%clk 0:00:40]}  Na4 {[%clk 0:00:26]} 32. Rc8+ {[%clk 0:00:40]}  Kg7 {[%clk 0:00:25]} 33. Rc7+ {[%clk 0:00:39]}  Kg8 {[%clk 0:00:26]} 34. c4 {[%clk 0:00:35]}  Rd4 {[%clk 0:00:18]} 35. Rc8+ {[%clk 0:00:34]}  Kg7 {[%clk 0:00:17]} 36. Ne6+ {[%clk 0:00:35]} 1-0


[Site "https://www.chess.com"]

[Event "Titled Tuesday Blitz November 22 Early 2022"]
[White "Kim, Sergey"]
[Black "Grandelius, Nils"]
[WhiteFideId "13700570"]
[BlackFideId "1710400"]
[WhiteElo "2603"]
[BlackElo "2617"]
[Result "0-1"]
[Round "02"]
[TimeControl "180+1"]
[Date "2022.11.23"]
[WhiteClock "0:00:14"]
[BlackClock "0:00:18"]

1. d4 {[%clk 0:03:00]}  f5 {[%clk 0:02:59]} 2. c4 {[%clk 0:03:00]}  Nf6 {[%clk 0:02:59]} 3. g3 {[%clk 0:03:01]}  g6 {[%clk 0:02:57]} 4. Bg2 {[%clk 0:03:01]}  Bg7 {[%clk 0:02:58]} 5. Nf3 {[%clk 0:03:01]}  O-O {[%clk 0:02:59]} 6. O-O {[%clk 0:03:01]}  d6 {[%clk 0:02:59]} 7. Nc3 {[%clk 0:03:01]}  Nc6 {[%clk 0:03:00]} 8. d5 {[%clk 0:03:01]}  Ne5 {[%clk 0:03:00]} 9. Nxe5 {[%clk 0:03:01]}  dxe5 {[%clk 0:03:01]} 10. c5 {[%clk 0:03:01]}  Kh8 {[%clk 0:03:00]} 11. Qb3 {[%clk 0:03:00]}  f4 {[%clk 0:02:59]} 12. Rd1 {[%clk 0:03:00]}  Rb8 {[%clk 0:02:48]} 13. d6 {[%clk 0:02:53]}  exd6 {[%clk 0:02:45]} 14. cxd6 {[%clk 0:02:54]}  cxd6 {[%clk 0:02:42]} 15. Nb5 {[%clk 0:02:53]}  d5 {[%clk 0:02:29]} 16. Nxa7 {[%clk 0:02:52]}  Bg4 {[%clk 0:02:25]} 17. f3 {[%clk 0:02:49]}  Qa5 {[%clk 0:02:06]} 18. Nb5 {[%clk 0:02:34]}  Bd7 {[%clk 0:02:03]} 19. Nc3 {[%clk 0:02:25]}  Qc5+ {[%clk 0:02:00]} 20. Kh1 {[%clk 0:02:23]}  fxg3 {[%clk 0:02:00]} 21. hxg3 {[%clk 0:02:22]}  d4 {[%clk 0:01:38]} 22. Na4 {[%clk 0:02:14]}  Qc6 {[%clk 0:01:14]} 23. Nb6 {[%clk 0:02:13]}  Be6 {[%clk 0:01:13]} 24. Qb4 {[%clk 0:02:12]}  Nh5 {[%clk 0:01:11]} 25. Kh2 {[%clk 0:02:09]}  e4 {[%clk 0:01:11]} 26. f4 {[%clk 0:02:09]}  Rbd8 {[%clk 0:01:06]} 27. Bd2 {[%clk 0:01:59]}  Bg4 {[%clk 0:01:05]} 28. Re1 {[%clk 0:01:20]}  Nf6 {[%clk 0:00:53]} 29. Rac1 {[%clk 0:01:12]}  Qe6 {[%clk 0:00:53]} 30. e3 {[%clk 0:01:11]}  Bf5 {[%clk 0:00:49]} 31. Nc4 {[%clk 0:01:07]}  Ng4+ {[%clk 0:00:49]} 32. Kg1 {[%clk 0:01:07]}  dxe3 {[%clk 0:00:49]} 33. Nxe3 {[%clk 0:01:01]}  Rd4 {[%clk 0:00:49]} 34. Nxf5 {[%clk 0:00:56]}  Rxb4 {[%clk 0:00:44]} 35. Nxg7 {[%clk 0:00:56]}  Kxg7 {[%clk 0:00:41]} 36. Bxb4 {[%clk 0:00:50]}  Qb6+ {[%clk 0:00:42]} 37. Bc5 {[%clk 0:00:49]}  Qxb2 {[%clk 0:00:40]} 38. Rb1 {[%clk 0:00:46]}  Qc3 {[%clk 0:00:33]} 39. Bxf8+ {[%clk 0:00:31]}  Kxf8 {[%clk 0:00:34]} 40. Rxe4 {[%clk 0:00:21]}  Qc5+ {[%clk 0:00:24]} 41. Kh1 {[%clk 0:00:17]}  Nf2+ {[%clk 0:00:20]} 42. Kh2 {[%clk 0:00:17]}  Nxe4 {[%clk 0:00:18]} 43. Bxe4 {[%clk 0:00:17]}  b5 {[%clk 0:00:19]} 44. Re1 {[%clk 0:00:14]}  Qf2+ {[%clk 0:00:18]} 0-1


[Site "https://www.chess.com"]

[Event "Titled Tuesday Blitz November 22 Early 2022"]
[White "Korchmar, Vasiliy"]
[Black "Shubenkova, Veronika"]
[WhiteFideId "24131750"]
[BlackFideId "44124040"]
[WhiteElo "2370"]
[BlackElo "2027"]
[Result "1-0"]
[Round "02"]
[TimeControl "180+1"]
[Date "2022.11.23"]
[WhiteClock "0:01:11"]
[BlackClock "0:00:27"]

1. e4 {[%clk 0:03:00]}  e6 {[%clk 0:02:58]} 2. d4 {[%clk 0:03:00]}  d5 {[%clk 0:02:58]} 3. e5 {[%clk 0:03:01]}  c5 {[%clk 0:02:59]} 4. c3 {[%clk 0:03:01]}  Nc6 {[%clk 0:02:58]} 5. Nf3 {[%clk 0:03:01]}  Qb6 {[%clk 0:02:59]} 6. Be2 {[%clk 0:03:01]}  Bd7 {[%clk 0:02:59]} 7. O-O {[%clk 0:03:00]}  cxd4 {[%clk 0:02:56]} 8. cxd4 {[%clk 0:02:59]}  f6 {[%clk 0:02:56]} 9. Nc3 {[%clk 0:02:22]}  Be7 {[%clk 0:02:38]} 10. Be3 {[%clk 0:02:09]}  a6 {[%clk 0:02:35]} 11. Rc1 {[%clk 0:01:45]}  Qc7 {[%clk 0:02:22]} 12. Na4 {[%clk 0:01:34]}  b6 {[%clk 0:02:09]} 13. Qb3 {[%clk 0:01:27]}  Bd8 {[%clk 0:02:08]} 14. exf6 {[%clk 0:01:14]}  Nxf6 {[%clk 0:02:06]} 15. Ne5 {[%clk 0:01:15]}  O-O {[%clk 0:01:32]} 16. Rc2 {[%clk 0:01:14]}  Qb7 {[%clk 0:01:24]} 17. Nc5 {[%clk 0:01:12]}  Qa7 {[%clk 0:00:27]} 18. Ncxd7 {[%clk 0:01:11]} 1-0


[Site "https://www.chess.com"]

[Event "Titled Tuesday Blitz November 22 Early 2022"]
[White "Kowalczyk, Pawel"]
[Black "Urquhart, Ed"]
[WhiteFideId "1130641"]
[BlackFideId "2603748"]
[WhiteElo "2324"]
[BlackElo "2184"]
[Result "0-1"]
[Round "02"]
[TimeControl "180+1"]
[Date "2022.11.23"]
[WhiteClock "0:01:13"]
[BlackClock "0:00:16"]

1. e4 {[%clk 0:03:00]}  c5 {[%clk 0:02:57]} 2. Nf3 {[%clk 0:03:00]}  e6 {[%clk 0:02:57]} 3. g3 {[%clk 0:03:00]}  Nc6 {[%clk 0:02:57]} 4. Bg2 {[%clk 0:03:00]}  d6 {[%clk 0:02:54]} 5. O-O {[%clk 0:02:59]}  Nf6 {[%clk 0:02:54]} 6. Re1 {[%clk 0:02:58]}  e5 {[%clk 0:02:54]} 7. c3 {[%clk 0:02:57]}  Be7 {[%clk 0:02:54]} 8. d4 {[%clk 0:02:57]}  O-O {[%clk 0:02:52]} 9. Bg5 {[%clk 0:02:56]}  Rb8 {[%clk 0:02:40]} 10. a4 {[%clk 0:02:54]}  a6 {[%clk 0:02:38]} 11. Na3 {[%clk 0:02:48]}  Re8 {[%clk 0:02:32]} 12. dxe5 {[%clk 0:02:44]}  dxe5 {[%clk 0:02:31]} 13. Bxf6 {[%clk 0:02:42]}  Bxf6 {[%clk 0:02:31]} 14. Nc4 {[%clk 0:02:42]}  Be6 {[%clk 0:02:23]} 15. Ne3 {[%clk 0:02:35]}  b5 {[%clk 0:02:16]} 16. axb5 {[%clk 0:02:33]}  axb5 {[%clk 0:02:17]} 17. Ra6 {[%clk 0:02:33]}  Qc8 {[%clk 0:02:13]} 18. Qa1 {[%clk 0:02:28]}  b4 {[%clk 0:02:03]} 19. Nd5 {[%clk 0:02:26]}  Bxd5 {[%clk 0:01:56]} 20. exd5 {[%clk 0:02:25]}  Nd8 {[%clk 0:01:51]} 21. Nd2 {[%clk 0:02:23]}  bxc3 {[%clk 0:01:49]} 22. bxc3 {[%clk 0:02:23]}  Nb7 {[%clk 0:01:42]} 23. Ne4 {[%clk 0:02:19]}  Be7 {[%clk 0:01:38]} 24. d6 {[%clk 0:02:19]}  Bf8 {[%clk 0:01:38]} 25. Rd1 {[%clk 0:02:19]}  Rd8 {[%clk 0:01:30]} 26. Qa2 {[%clk 0:02:13]}  h6 {[%clk 0:01:27]} 27. h4 {[%clk 0:02:12]}  c4 {[%clk 0:01:16]} 28. Kh2 {[%clk 0:02:10]}  Nc5 {[%clk 0:01:11]} 29. Rc6 {[%clk 0:02:08]}  Qxc6 {[%clk 0:00:47]} 30. Nf6+ {[%clk 0:02:08]}  gxf6 {[%clk 0:00:47]} 31. Bxc6 {[%clk 0:02:09]}  Nd3 {[%clk 0:00:45]} 32. d7 {[%clk 0:02:00]}  Rb2 {[%clk 0:00:43]} 33. Qxc4 {[%clk 0:01:56]}  Nxf2 {[%clk 0:00:42]} 34. Rf1 {[%clk 0:01:55]}  Ng4+ {[%clk 0:00:38]} 35. Kh1 {[%clk 0:01:50]}  Ne3 {[%clk 0:00:37]} 36. Qd3 {[%clk 0:01:46]}  Nxf1 {[%clk 0:00:37]} 37. Qxf1 {[%clk 0:01:47]}  Be7 {[%clk 0:00:33]} 38. Qf5 {[%clk 0:01:44]}  Rdb8 {[%clk 0:00:29]} 39. Be4 {[%clk 0:01:43]}  Bd8 {[%clk 0:00:21]} 40. Qh7+ {[%clk 0:01:41]}  Kf8 {[%clk 0:00:21]} 41. Qh8+ {[%clk 0:01:40]}  Ke7 {[%clk 0:00:22]} 42. Qe8+ {[%clk 0:01:41]}  Kd6 {[%clk 0:00:23]} 43. Qxf7 {[%clk 0:01:41]}  Re2 {[%clk 0:00:19]} 44. Qd5+ {[%clk 0:01:41]}  Ke7 {[%clk 0:00:19]} 45. Bf5 {[%clk 0:01:40]}  Rbb2 {[%clk 0:00:16]} 46. Qe6+ {[%clk 0:01:25]}  Kf8 {[%clk 0:00:15]} 47. Qe8+ {[%clk 0:01:20]}  Kg7 {[%clk 0:00:16]} 48. Qg6+ {[%clk 0:01:20]}  Kf8 {[%clk 0:00:16]} 49. Qxh6+ {[%clk 0:01:20]}  Ke7 {[%clk 0:00:17]} 50. Qg7+ {[%clk 0:01:14]}  Kd6 {[%clk 0:00:17]} 51. Qf8+ {[%clk 0:01:13]}  Kc6 {[%clk 0:00:16]} 0-1


[Site "https://www.chess.com"]